Workbook

Sheet NSU
B1: Ria Ojala | E1: 18.5.2002 Oulu
B2: SUPERPESIS | E2: Runkosarja | I2: Kärkilyönnit (KL), pesänvälit | Q2: Runkosarja | U2: Ylempi loppusarja | Z2: Alempi loppusarja | AG2: Arvo-ottelut ja mitalit
B3: Vuosi | C3: Sija | D3: Seura | E3: OTT | F3: KUN | G3: LÖI | H3: TOI | I3: KL | J3: 0 > 1 | K3: 1 > 2 | L3: 2 > 3 | M3: 3 > k | N3: KL-% | P3: LÖI | Q3: TOI | R3: L+T | S3: KL | U3: OTT | V3: KUN | W3: LÖI | X3: TOI | Y3: KL | Z3: OTT | AA3: KUN | AB3: LÖI | AC3: TOI | AD3: KL | AE3: IL | AF3: LL | AG3: Halli | AH3: K | AI3: H | AJ3: P
B4: 2016 | D4: KeKi 2 | F4: suomensarja
B5: 2017 | D5: KeKi 2 | F5: suomensarja
B6: 2018 | D6: KeKi 2 | F6: suomensarja
B7: 2018 | C7: 7. | D7: KeKi | E7: 11 | F7: 0 | G7: 2 | H7: 4 | I7: 16 | J7: 14 | K7: 0 | L7: 0 | M7: 2 | N7: 31.4 % | O7: 51
B8: 2019 | D8: OsVa | F8: ykköspesis
B9: 2019 | C9: 8. | D9: KeKi | E9: 22 | F9: 1 | G9: 3 | H9: 18 | I9: 78 | J9: 62 | K9: 6 | L9: 6 | M9: 4 | N9: 52.7 % | O9: 148 | U9: 3 | V9: 0 | W9: 0 | X9: 0 | Y9: 9
B10: 2020 | C10: 7. | D10: KeKi | E10: 20 | F10: 0 | G10: 9 | H10: 10 | I10: 64 | J10: 45 | K10: 5 | L10: 5 | M10: 9 | N10: 51.6 % | O10: 124 | U10: 2 | V10: 0 | W10: 0 | X10: 1 | Y10: 3
B11: 2021 | C11: 7. | D11: KeKi | E11: 24 | F11: 2 | G11: 3 | H11: 19 | I11: 83 | J11: 32 | K11: 38 | L11: 8 | M11: 5 | N11: 57.2 % | O11: 145 | U11: 3 | V11: 0 | W11: 0 | X11: 0 | Y11: 9
B12: 2022 | C12: 5. | D12: SMJ | E12: 23 | F12: 0 | G12: 6 | H12: 9 | I12: 67 | J12: 45 | K12: 11 | L12: 5 | M12: 6 | N12: 49.6 % | O12: 135 | U12: 4 | V12: 0 | W12: 0 | X12: 2 | Y12: 9
B13: 2023 | C13: 4. | D13: SMJ | E13: 24 | F13: 1 | G13: 18 | H13: 12 | I13: 87 | J13: 31 | K13: 19 | L13: 18 | M13: 19 | N13: 60.0 % | O13: 145 | U13: 9 | V13: 0 | W13: 4 | X13: 5 | Y13: 24
B14: Yhteensä | E14: =SUM(E7:E13) -> 124 | F14: =SUM(F7:F13) -> 4 | G14: 41 | H14: 72 | I14: 395 | J14: 229 | K14: 79 | L14: 42 | M14: 45 | N14: =PRODUCT(I14/O14) -> 52.8 % | O14: 748 | U14: =SUM(U7:U13) -> 21 | V14: =SUM(V7:V13) -> 0 | W14: 4 | X14: 8 | Y14: 54 | Z14: =SUM(Z13:Z13) -> 0 | AA14: 0 | AB14: 0 | AC14: 0 | AD14: 0 | AE14: 0 | AF14: 0 | AG14: 0 | AH14: 0 | AI14: 0 | AJ14: 0
B15: Pesispörssi | D15: =SUM(F14:H14)+((I14-F14-G14)/3)+(E14/3)+(AE14*25)+(AF14*25)+(AG14*10)+(AH14*25)+(AI14*20)+(AJ14*15) -> 275.0
B17: URA SUPERISSA | E17: OTT | F17: KUN | G17: LÖI | H17: TOI | I17: KL | K17: ka/L | L17: ka/T | M17: ka/KL | N17: K - % | P17: ENSIMMÄISET
B18: Runkosarja | E18: =PRODUCT(E14) -> 124 | F18: =PRODUCT(F14) -> 4 | G18: =PRODUCT(G14) -> 41 | H18: =PRODUCT(H14) -> 72 | I18: =PRODUCT(I14) -> 395 | K18: =PRODUCT((F18+G18)/E18) -> 0.36 | L18: =PRODUCT(H18/E18) -> 0.58 | M18: =PRODUCT(I18/E18) -> 3.19 | N18: =PRODUCT(N14) -> 52.8 % | O18: =PRODUCT(O14) -> 748 | P18: Ottelu | R18: 23.05. 2018 KeKi - Kirittäret 0-2 (1-2, 2-4) | AC18: 1. ottelu | AF18: 16 v 0 kk 5 pv
B19: Ylempi loppusarja | E19: =PRODUCT(U14) -> 21 | F19: =PRODUCT(V14) -> 0 | G19: =PRODUCT(W14) -> 4 | H19: =PRODUCT(X14) -> 8 | I19: =PRODUCT(Y14) -> 54 | K19: =PRODUCT((F19+G19)/E19) -> 0.19 | L19: =PRODUCT(H19/E19) -> 0.38 | M19: =PRODUCT(I19/E19) -> 2.57 | N19: =PRODUCT(I19/O19) -> 43.2 % | O19: 125 | P19: Lyöty | R19: 23.05. 2018 KeKi - Kirittäret 0-2 (1-2, 2-4) | AC19: 1. ottelu | AF19: 16 v 0 kk 5 pv
B20: Alempi loppusarja | P20: Tuotu | R20: 18.07. 2018 KeKi - Pesä Ysit 1-0 (1-1, 8-4) | AC20: 7. ottelu | AF20: 16 v 2 kk 0 pv
B21: KAIKKI | E21: =SUM(E18:E20) -> 145 | F21: =SUM(F18:F20) -> 4 | G21: =SUM(G18:G20) -> 45 | H21: =SUM(H18:H20) -> 80 | I21: =SUM(I18:I20) -> 449 | K21: =PRODUCT((F21+G21)/E21) -> 0.34 | L21: =PRODUCT(H21/E21) -> 0.55 | M21: =PRODUCT(I21/E21) -> 3.10 | N21: =PRODUCT(I21/O21) -> 51.4 % | O21: =SUM(O18:O20) -> 873 | P21: Kunnari | R21: 30.06. 2019 KeKi - Manse PP 1-2 (0-3, 6-3, 0-0, 1-3) | AC21: 24. ottelu | AF21: 16 v 2 kk 0 pv
B23: Seurat | D23: KeKi = Kempeleen Kiri (1915), kasvattajaseura
D24: OsVa = Oulunsalon Vasama (1910)
D25: SMJ = Seinäjoen Maila-Jussit (1932)

Sheet Arvo-ottelut
B1: ITÄ - LÄNSI - KORTTI
B2: Ria Ojala | C2: 18.5.2002 Oulu
B3: B-TYTÖT | C3: Itä - Länsi, tulos | D3: Joukkue | E3: Seura | G3: V | H3: T | I3: H | J3: Up. | K3: Lj. | L3: Palk. | M3: O | N3: K | O3: L | P3: T | Q3: KL | R3: 1 | S3: 2 | T3: 3 | U3: k | V3: KL-% | W3: Pelinjohtaja | X3: Yleisöä
B4: 06.07. 2019 Seinäjoki | C4: 0-1 (4-4, 0-4) | D4: Itä | E4: KeKi | I4: 1 | J4: 2p | K4: 1 | M4: 1 | P4: 1 | Q4: 4/9 | R4: 4/7 | S4: 0/1 | U4: 0/1 | V4: 44.4 % | W4: Matti Pirinen | X4: 1054
B5: 06.08. 2021 Pori | C5: 1-2 (3-2, 4-5, 0-1) | D5: Itä | E5: KeKi | I5: 1 | J5: 2p | K5: 3 | M5: 1 | Q5: 3/5 | R5: 0/1 | S5: 1/1 | T5: 2/3 | V5: 60.0 % | W5: Jarkko Sillanpää | X5: 942
B6: Yhteensä | I6: =SUM(I3:I5) -> 2 | M6: =SUM(M3:M5) -> 2 | P6: 1 | Q6: 7/14 | R6: 4/8 | S6: 1/2 | T6: 2/3 | U6: 0/1 | V6: 50.0 %
